fUST/lending_fUST_20251001
["ID","MTS","AMOUNT","RATE_DAILY","PERIOD"]
[388715883,1759332650994,-500.0,0.00020273,2]
[388715884,1759332651004,-500.0,0.00020273,2]
[388715885,1759332651014,-500.0,0.00020273,2]
[388715886,1759332651023,-500.0,0.00020273,2]
[388715887,1759332651033,-500.0,0.00020273,2]
[388715888,1759332651042,-500.0,0.00020273,2]
[388715889,1759332651052,-538.94,0.00020273,2]
[388715890,1759332651062,-500.0,0.00020273,2]
[388715891,1759332651072,-500.0,0.00020273,2]
[388715892,1759332651081,-500.0,0.00020273,2]
[388715893,1759332651091,-500.0,0.00020273,2]
[388715894,1759332651100,-500.0,0.00020273,2]
[388715895,1759332651110,-500.0,0.00020273,2]
[388715896,1759332651119,-500.0,0.00020273,2]
[388715897,1759332651129,-174.62,0.00020273,2]
[388715898,1759332651138,-500.0,0.00020273,2]
[388715899,1759332651147,-500.0,0.00020273,2]
[388715900,1759332651156,-500.0,0.00020273,2]
[388715901,1759332651166,-1202.65,0.00020273,2]
[388715902,1759332651180,-616.14,0.00020273,2]
[388715903,1759332651189,-500.0,0.00020273,2]
[388715904,1759332651199,-609.6,0.00020273,2]
[388715905,1759332651208,-500.0,0.00020273,2]
[388715906,1759332651219,-500.0,0.00020273,2]
[388715907,1759332651228,-500.0,0.00020273,2]
[388715908,1759332651238,-356.52,0.00020273,2]
[388715909,1759332651249,-500.0,0.00020273,2]
[388715910,1759332651259,-556.73,0.00020273,2]
[388715911,1759332651268,-500.0,0.00020273,2]
[388715912,1759332651279,-500.0,0.00020273,2]
[388715913,1759332651290,-171.41,0.00020273,2]
[388715914,1759332651301,-894.32,0.00020273,2]
[388715915,1759332651310,-500.0,0.00020273,2]
[388715916,1759332651321,-3359.82,0.00020273,2]
[388715917,1759332651330,-711.44,0.00020273,2]
[388715918,1759332651340,-500.0,0.00020273,2]
[388715919,1759332651349,-245.36988048,0.00020273,2]
[388715920,1759332651359,-242.84,0.00020273,2]
[388715921,1759332651368,-500.0,0.00020273,2]
[388715922,1759332651379,-578.05,0.00020273,2]
[388715923,1759332651388,-840.59,0.00020273,2]
[388715924,1759332651398,-500.0,0.00020273,2]
[388715925,1759332651408,-567.93,0.00020273,2]
[388715926,1759332651417,-500.0,0.00020273,2]
[388715927,1759332651426,-500.0,0.00020273,2]
[388715928,1759332651436,-500.0,0.00020273,2]
[388715929,1759332651445,-452.2,0.00020273,2]
[388715930,1759332651454,-500.0,0.00020273,2]
[388715931,1759332651463,-2529.05,0.00020273,2]
[388715932,1759332651473,-500.0,0.00020273,2]
[388715933,1759332651482,-500.0,0.00020273,2]
[388715934,1759332651491,-500.0,0.00020273,2]
[388715935,1759332651500,-500.0,0.00020273,2]
[388715936,1759332651510,-590.77,0.00020273,2]
[388715937,1759332651519,-959.66,0.00020273,2]
[388715938,1759332651528,-2.99467863,0.000203,2]
[388715939,1759332661921,800.0,0.00028767,120]
[388715940,1759332670903,8414.89878814,0.00018898,2]
[388715941,1759332670925,10000.01,0.00018898,2]
[388715942,1759332670948,10000.01,0.00018898,2]
[388715943,1759332670971,10000.01,0.00018898,2]
[388715944,1759332670993,10000.01,0.00018898,2]
[388715945,1759332671015,8655.61717076,0.00018898,2]
[388715946,1759332692964,800.0,0.00028767,120]
[388715947,1759332695199,1000.0,0.0003381,120]
[388715949,1759332707076,1000.0,0.0003381,120]
[388715950,1759332748231,1000.0,0.0003381,120]
[388715951,1759332755800,1000.0,0.0003381,120]
[388715952,1759332762394,1000.0,0.0003381,120]
[388715953,1759332771933,500.0,0.0003381,120]
[388715954,1759332792030,1344.39282924,0.00019078,2]
[388715955,1759332792058,10000.01,0.00019078,2]
[388715956,1759332792085,10000.01,0.00019078,2]
[388715957,1759332792112,10000.01,0.00019078,2]
[388715958,1759332792138,10000.01,0.00019078,2]
[388715959,1759332792164,10000.01,0.00019078,2]
[388715960,1759332792190,10000.01,0.00019078,2]
[388715961,1759332792217,10000.01,0.00019078,2]
[388715962,1759332792245,10000.01,0.00019078,2]
[388715963,1759332792272,10000.01,0.00019078,2]
[388715964,1759332808240,601.74832,0.0003381,120]
[388715965,1759332811063,1910.09201034,0.00019078,2]
[388715966,1759332823102,1448.5916827,0.00018255,2]
[388715967,1759332829663,161.0,0.000287,120]
[388715968,1759332837016,161.0,0.000287,120]
[388715969,1759332843227,300.0,0.00019077,2]
[388715971,1759332853981,322.48179412,0.00019078,2]
[388715977,1759332872353,227.27648909,0.00019077,2]
[388715978,1759332872531,364.20920424,0.00019077,2]
[388715979,1759332873065,500.0,0.00019077,2]
[388715980,1759332873096,500.0,0.00019077,2]
[388715981,1759332873127,500.0,0.00019077,2]
[388715982,1759332873158,500.0,0.00019077,2]
[388715983,1759332873187,500.0,0.00019077,2]
[388715984,1759332873217,237.63242537,0.00019077,2]
[388715985,1759332873249,500.0,0.00019077,2]
[388715986,1759332873279,234.43649287,0.00019077,2]
[388715987,1759332873312,500.0,0.00019077,2]
[388715988,1759332873342,500.0,0.00019077,2]
[388715989,1759332873375,500.0,0.00019077,2]
[388715990,1759332873404,455.28990127,0.00019077,2]
[388715991,1759332873427,44.71009873,0.00019077,2]
[388715992,1759332888309,161.0,0.000287,120]
[388715993,1759332889343,161.0,0.000287,120]
[388715999,1759332901418,300.0,0.00019077,2]
[388716000,1759332902167,300.0,0.00019077,2]
[388716001,1759332902598,300.0,0.00019077,2]
[388716003,1759332902900,300.0,0.00019077,2]
[388716004,1759332904353,300.0,0.00019077,2]
[388716006,1759332904901,1200.0,0.00019077,2]
[388716009,1759332952976,5000.0,0.00019078,2]
[388716010,1759332958275,704.86,0.00019068,3]
[388716011,1759332962737,300.0,0.00019077,2]
[388716012,1759332968478,1250.43990127,0.00019078,2]
[388716013,1759332968506,3749.56009873,0.00019078,2]
[388716014,1759332969255,352.43,0.00019068,3]
[388716015,1759332976922,5000.0,0.00019078,2]
[388716016,1759332977029,898.01990127,0.00018189,2]
[388716017,1759332977055,505.44892277,0.00018189,2]
[388716018,1759332977518,1403.46882404,0.00018378,2]
[388716019,1759332977905,1403.46882404,0.00018677,2]
[388716020,1759332978243,1403.46882404,0.00018925,2]
[388716021,1759332980301,176.22,0.00019068,3]
[388716022,1759332982258,933.81401307,0.00018978,2]
[388716024,1759332988692,1000.0,0.0001827,2]
[388716025,1759332991056,528.68,0.00019068,3]
[388716027,1759332992211,159.09354236,0.00019077,2]
[388716028,1759332992242,254.94644297,0.00019077,2]
[388716029,1759332992764,2231.40060671,0.00019078,2]
[388716030,1759332992790,2768.59939329,0.00019078,2]
[388716031,1759332993075,470.84804726,0.00019077,2]
[388716033,1759333000642,4637.56581888,0.00019078,2]
[388716034,1759333004556,170.6148935,0.00019,2]
[388716035,1759333006572,774.87595045,0.00018347,2]
[388716036,1759333008315,1177.50589662,0.00018347,2]
[388716037,1759333008339,1918.89840138,0.00018347,2]
[388716038,1759333009463,178.46251007,0.00019077,2]
[388716039,1759333017120,838.3538081,0.00018305,2]
[388716040,1759333017673,5000.0,0.00019078,2]
[388716041,1759333022866,300.0,0.00019077,2]
[388716042,1759333040241,1764.29528045,0.00019078,2]
[388716043,1759333040268,3235.70471955,0.00019078,2]
[388716044,1759333041034,1200.0,0.00019077,2]
[388716045,1759333048124,200.0,0.00019078,10]
[388716046,1759333056797,5364.30528045,0.00018305,2]
[388716047,1759333056820,10000.01,0.00018305,2]
[388716048,1759333056844,8268.83253635,0.00018305,2]
[388716049,1759333062921,1731.17746365,0.00019078,2]
[388716050,1759333062946,3268.82253635,0.00019078,2]
[388716052,1759333080819,162.81,0.00016384,2]
[388716053,1759333081169,162.79,0.00016384,2]
[388716054,1759333081690,6263.9878644,0.00019,2]
[388716055,1759333083332,141.59959925,0.00019077,2]
[388716056,1759333083357,158.40040075,0.00019077,2]
[388716057,1759333084259,199.40374989,0.00018917,2]
[388716058,1759333085803,5000.0,0.00019078,2]
[388716059,1759333092871,151.0,0.000186,2]
[388716060,1759333093209,151.0,0.000176,2]
[388716061,1759333095634,9698.01,0.00018228,2]
[388716062,1759333095658,5360.4722,0.00018228,2]
[388716063,1759333097564,1445.50921952,0.00018275,2]
[388716064,1759333097861,1445.50921952,0.00018462,2]
[388716065,1759333098213,1445.50921952,0.00018647,2]
[388716066,1759333098539,303.01014144,0.00019061,2]
[388716067,1759333098561,1142.49907808,0.00019061,2]
[388716068,1759333104094,545.97,0.00019068,3]
[388716069,1759333107043,500.0,0.00019077,2]
[388716070,1759333107076,500.0,0.00019077,2]
[388716071,1759333107107,421.99591831,0.00019077,2]
[388716072,1759333107137,500.0,0.00019077,2]
[388716073,1759333107169,500.0,0.00019077,2]
[388716074,1759333107200,500.0,0.00019077,2]
[388716075,1759333107229,559.05161618,0.00019077,2]
[388716076,1759333107258,500.0,0.00019077,2]
[388716077,1759333107292,500.0,0.00019077,2]
[388716078,1759333107334,500.0,0.00019077,2]
[388716079,1759333107370,500.0,0.00019077,2]
[388716080,1759333107401,500.0,0.00019077,2]
[388716081,1759333107436,457.88458425,0.00019077,2]
[388716082,1759333107471,500.0,0.00019077,2]
[388716083,1759333107501,500.0,0.00019077,2]
[388716084,1759333107531,500.0,0.00019077,2]
[388716085,1759333107571,372.60880318,0.00019077,2]
[388716086,1759333107598,127.39119682,0.00019077,2]
[388716087,1759333107629,500.0,0.00019077,2]
[388716088,1759333107671,500.0,0.00019077,2]
[388716089,1759333107702,500.0,0.00019077,2]
[388716090,1759333107738,500.0,0.00019077,2]
[388716091,1759333108364,5000.0,0.00019078,2]
[388716092,1759333114166,204.49914515,0.00019077,2]
[388716093,1759333114331,500.0,0.00019077,2]
[388716094,1759333114363,500.0,0.00019077,2]
[388716095,1759333114396,500.0,0.00019077,2]
[388716096,1759333114425,500.0,0.00019077,2]
[388716097,1759333114458,500.0,0.00019077,2]
[388716098,1759333114492,168.11965803,0.00019077,2]
[388716099,1759333114517,331.88034197,0.00019077,2]
[388716100,1759333114548,500.0,0.00019077,2]
[388716101,1759333114581,500.0,0.00019077,2]
[388716102,1759333114611,500.0,0.00019077,2]
[388716103,1759333114645,525.0,0.00019077,2]
[388716104,1759333114675,335.0,0.00019077,2]
[388716105,1759333114703,500.0,0.00019077,2]
[388716106,1759333114740,500.0,0.00019077,2]
[388716107,1759333114768,500.0,0.00019077,2]
[388716108,1759333114796,500.0,0.00019077,2]
[388716109,1759333114834,500.0,0.00019077,2]
[388716110,1759333114863,500.0,0.00019077,2]
[388716111,1759333114892,500.0,0.00019077,2]
[388716112,1759333114920,500.0,0.00019077,2]
[388716113,1759333114948,500.0,0.00019077,2]
[388716114,1759333114983,500.0,0.00019077,2]
[388716115,1759333115020,500.0,0.00019077,2]
[388716116,1759333115050,500.0,0.00019077,2]
[388716117,1759333115092,500.0,0.00019077,2]
[388716118,1759333115132,500.0,0.00019077,2]
[388716119,1759333115163,308.12965803,0.00019077,2]
[388716120,1759333115187,191.87034197,0.00019077,2]
[388716121,1759333115253,547.52449694,0.00019077,2]
[388716122,1759333116941,1008.74819184,0.00019,2]
[388716123,1759333124281,500.0,0.00019077,2]
[388716124,1759333124823,843.0,0.00019068,3]
[388716125,1759333133183,500.0,0.00019077,2]
[388716126,1759333135673,421.5,0.00019068,3]
[388716127,1759333142901,300.0,0.00019077,2]
[388716128,1759333146504,210.75,0.00019068,3]
[388716130,1759333157172,632.3,0.00019068,3]
[388716131,1759333178467,292.7300141,0.00018224,2]
[388716132,1759333201433,300.0,0.00019077,2]
[388716133,1759333202539,300.0,0.00019077,2]
[388716134,1759333202740,300.0,0.00019077,2]
[388716135,1759333202984,300.0,0.00019077,2]
[388716136,1759333203874,300.0,0.00019077,2]
[388716137,1759333205177,1200.0,0.00019077,2]
[388716138,1759333219811,1445.50921952,0.00018868,2]
[388716139,1759333220125,406.07773563,0.00019046,2]
[388716140,1759333220152,1039.43148389,0.00019046,2]
[388716141,1759333225175,4960.9077005,0.00019078,2]
[388716143,1759333233600,3999.67081561,0.00019078,2]
[388716144,1759333233628,1000.32918439,0.00019078,2]
[388716145,1759333241729,5000.0,0.00019078,2]
[388716147,1759333263524,300.0,0.00019077,2]
[388716149,1759333291784,759.480593,0.00018212,2]
[388716150,1759333305783,154.0,9.3e-07,2]
[388716151,1759333307010,154.0,9.3e-07,2]
[388716153,1759333322440,300.0,0.00019077,2]
[388716154,1759333339772,1445.5092195,0.00018052,2]
[388716155,1759333340075,886.69100311,0.00018204,2]
[388716156,1759333340100,558.81821639,0.00018204,2]
[388716157,1759333340386,1445.5092195,0.00018391,2]
[388716158,1759333340859,1445.5092195,0.00018812,2]
[388716159,1759333341169,1200.0,0.00019077,2]
[388716160,1759333341486,1445.5092195,0.00018949,2]
[388716161,1759333356136,500.0,0.00033915,60]
[388716162,1759333356337,500.00486804,0.00033915,60]
[388716163,1759333383167,300.0,0.00019077,2]
[388716169,1759333395148,151.0,0.000189,2]
[388716170,1759333395854,201.595835,0.00018191,2]
[388716172,1759333422346,5011.19029152,0.00019,2]
[388716173,1759333442883,245.20543448,0.00019077,2]
[388716174,1759333442909,54.79456552,0.00019077,2]
[388716175,1759333462179,1445.5092195,0.00018758,2]
[388716176,1759333462486,1445.5092195,0.0001901,2]
[388716180,1759333491145,666.0,0.00018184,2]
[388716181,1759333502557,300.0,0.00019077,2]
[388716182,1759333502709,300.0,0.00019077,2]
[388716183,1759333505105,1200.0,0.00019077,2]
[388716184,1759333538270,1000.71,0.00019078,2]
[388716185,1759333563237,300.0,0.00019077,2]
[388716192,1759333617550,311.91184846,0.00019,2]
[388716193,1759333622953,300.0,0.00019077,2]
[388716197,1759333683245,300.0,0.00019077,2]
[388716199,1759333699815,2375.57514702,0.00019078,2]
[388716200,1759333699842,2624.42485298,0.00019078,2]
[388716201,1759333722773,5000.0,0.00019078,2]
[388716202,1759333732704,491.75,0.00019068,3]
[388716204,1759333743336,300.0,0.00019077,2]
[388716205,1759333743377,245.87,0.00019068,3]
[388716206,1759333745293,300.2102138,0.00018392,2]
[388716207,1759333745832,1037.75493322,0.00019078,2]
[388716208,1759333745857,3962.24506678,0.00019078,2]
[388716209,1759333754151,737.64,0.00019068,3]
[388716210,1759333762177,5300.12493322,0.00019,2]
[388716211,1759333762202,234.87506678,0.00019,2]
[388716212,1759333763934,4008.9522332,0.00019,2]
[388716214,1759333802337,300.0,0.00019077,2]
[388716215,1759333802900,300.0,0.00019077,2]
[388716216,1759333804840,1200.0,0.00019077,2]
[388716265,1759333832082,-614.01773707,0.00019078,2]
[388716267,1759333832093,-3451.46277572,0.00019078,2]
[388716269,1759333832104,-3191.5547562,0.00019078,2]
[388716271,1759333832115,-548.53722428,0.00019078,2]
[388716272,1759333832126,-539.86438288,0.00019078,2]
[388716273,1759333832139,-270310.08029461,0.00019078,2]
[388716274,1759333832151,-300.0,0.000191,2]
[388716275,1759333832160,-300.0,0.000191,2]
[388716276,1759333832171,-300.0,0.000191,2]
[388716277,1759333832180,-300.0,0.000191,2]
[388716278,1759333832190,-300.0,0.000191,2]
[388716279,1759333832199,-4008.9522332,0.00019168,2]
[388716280,1759333832209,-500.0,0.00019173,2]
[388716281,1759333832218,-500.0,0.00019173,2]
[388716282,1759333832228,-301.46862515,0.00019173,2]
[388716283,1759333832237,-500.0,0.00019173,2]
[388716284,1759333832247,-500.0,0.00019173,2]
[388716285,1759333832257,-500.0,0.00019173,2]
[388716286,1759333832266,-508.08123487,0.00019173,2]
[388716287,1759333832276,-584.98919306,0.00019173,2]
[388716288,1759333832284,-500.0,0.00019173,2]
[388716289,1759333832293,-500.0,0.00019173,2]
[388716290,1759333832303,-500.0,0.00019173,2]
[388716291,1759333832313,-500.0,0.00019173,2]
[388716292,1759333832323,-500.0,0.00019173,2]
[388716293,1759333832332,-500.0,0.00019173,2]
[388716294,1759333832342,-504.96612841,0.00019173,2]
[388716295,1759333832351,-500.0,0.00019173,2]
[388716296,1759333832360,-500.0,0.00019173,2]
[388716297,1759333832369,-500.0,0.00019173,2]
[388716298,1759333832383,-500.0,0.00019173,2]
[388716299,1759333832392,-434.03052625,0.00019173,2]
[388716301,1759333832402,-13475.30437999,0.00019173,2]
[388716326,1759333832660,-1400.26382394,0.00019173,2]
[388716385,1759333837905,-35124.43179607,0.00019173,2]
[388716386,1759333837915,-502.00263187,0.00019173,2]
[388716387,1759333837924,-500.0,0.00019173,2]
[388716388,1759333837934,-503.8024159,0.00019173,2]
[388716389,1759333837943,-502.53425121,0.00019173,2]
[388716390,1759333837953,-262.15546015,0.00019173,2]
[388716391,1759333837963,-500.0,0.00019173,2]
[388716392,1759333837972,-500.0,0.00019173,2]
[388716393,1759333837982,-501.20022359,0.00019173,2]
[388716394,1759333837991,-500.0,0.00019173,2]
[388716395,1759333838001,-500.0,0.00019173,2]
[388716396,1759333838011,-500.0,0.00019173,2]
[388716397,1759333838021,-500.0,0.00019173,2]
[388716398,1759333838030,-500.0,0.00019173,2]
[388716399,1759333838039,-500.0,0.00019173,2]
[388716400,1759333838050,-500.0,0.00019173,2]
[388716401,1759333838059,-500.0,0.00019173,2]
[388716402,1759333838068,-500.0,0.00019173,2]
[388716403,1759333838078,-501.97120374,0.00019173,2]
[388716404,1759333838087,-500.0,0.00019173,2]
[388716405,1759333838097,-500.0,0.00019173,2]
[388716406,1759333838106,-253.279,0.00019177,2]
[388716407,1759333838115,-500.0,0.00019178,2]
[388716408,1759333838124,-500.0,0.00019178,2]
[388716409,1759333838133,-500.0,0.00019178,2]
[388716410,1759333838143,-500.0,0.00019178,2]
[388716411,1759333838154,-500.0,0.00019178,2]
[388716412,1759333838164,-500.0,0.00019178,2]
[388716413,1759333838174,-480.0,0.00019178,2]
[388716414,1759333838183,-500.0,0.00019178,2]
[388716415,1759333838193,-500.0,0.00019178,2]
[388716416,1759333838202,-500.0,0.00019178,2]
[388716417,1759333838212,-500.0,0.00019178,2]
[388716418,1759333838221,-480.0,0.00019178,2]
[388716419,1759333838230,-468.75264454,0.00019178,2]
[388716420,1759333838240,-500.0,0.00019178,2]
[388716421,1759333838249,-480.0,0.00019178,2]
[388716422,1759333838259,-500.0,0.00019178,2]
[388716423,1759333838268,-500.0,0.00019178,2]
[388716424,1759333838278,-500.0,0.00019178,2]
[388716425,1759333838287,-500.0,0.00019178,2]
[388716426,1759333838296,-500.0,0.00019178,2]
[388716427,1759333838306,-500.0,0.00019178,2]
[388716428,1759333838314,-500.0,0.00019178,2]
[388716429,1759333838324,-500.0,0.00019178,2]
[388716430,1759333838333,-500.0,0.00019178,2]
[388716431,1759333838343,-500.0,0.00019178,2]
[388716432,1759333838352,-463.06381733,0.00019178,2]
[388716433,1759333838362,-500.0,0.00019178,2]
[388716434,1759333838371,-255.02469634,0.00019178,2]
[388716435,1759333838380,-482.5478334,0.00019178,2]
[388716436,1759333838389,-480.0,0.00019178,2]
[388716437,1759333838399,-480.0,0.00019178,2]
[388716438,1759333838408,-480.0,0.00019178,2]
[388716439,1759333838418,-500.0,0.00019178,2]
[388716440,1759333838427,-500.0,0.00019178,2]
[388716441,1759333838436,-483.25305912,0.00019178,2]
[388716442,1759333838446,-500.0,0.00019178,2]
[388716443,1759333838455,-506.41,0.00019178,2]
[388716444,1759333838464,-500.0,0.00019178,2]
[388716445,1759333838474,-489.39225895,0.00019178,2]
[388716446,1759333838484,-500.0,0.00019178,2]
[388716447,1759333838498,-500.0,0.00019178,2]
[388716448,1759333838507,-482.83966128,0.00019178,2]
[388716449,1759333838516,-500.0,0.00019178,2]
[388716450,1759333838526,-500.0,0.00019178,2]
[388716451,1759333838538,-483.36914077,0.00019178,2]
[388716452,1759333838547,-500.0,0.00019178,2]
[388716453,1759333838557,-482.93289006,0.00019178,2]
[388716454,1759333838567,-500.0,0.00019178,2]
[388716455,1759333838576,-500.0,0.00019178,2]
[388716456,1759333838585,-500.0,0.00019178,2]
[388716457,1759333838595,-500.0,0.00019178,2]
[388716458,1759333838604,-500.0,0.00019178,2]
[388716459,1759333838614,-500.0,0.00019178,2]
[388716460,1759333838624,-482.28156793,0.00019178,2]
[388716461,1759333838633,-482.70935443,0.00019178,2]
[388716462,1759333838643,-500.0,0.00019178,2]
[388716463,1759333838652,-500.0,0.00019178,2]
[388716464,1759333838662,-500.0,0.00019178,2]
[388716465,1759333838671,-500.0,0.00019178,2]
[388716466,1759333838681,-500.0,0.00019178,2]
[388716467,1759333838690,-500.0,0.00019178,2]
[388716468,1759333838700,-500.0,0.00019178,2]
[388716469,1759333838709,-500.0,0.00019178,2]
[388716470,1759333838718,-500.0,0.00019178,2]
[388716471,1759333838728,-500.0,0.00019178,2]
[388716472,1759333838737,-500.0,0.00019178,2]
[388716473,1759333838747,-500.0,0.00019178,2]
[388716474,1759333838757,-500.0,0.00019178,2]
[388716475,1759333838766,-500.0,0.00019178,2]
[388716476,1759333838776,-500.0,0.00019178,2]
[388716477,1759333838786,-500.0,0.00019178,2]
[388716478,1759333838795,-500.0,0.00019178,2]
[388716479,1759333838805,-500.0,0.00019178,2]
[388716480,1759333838814,-1013.78,0.00019178,2]
[388716481,1759333838824,-482.86667372,0.00019178,2]
[388716482,1759333838833,-500.0,0.00019178,2]
[388716483,1759333838843,-500.0,0.00019178,2]
[388716484,1759333838852,-500.0,0.00019178,2]
[388716485,1759333838861,-500.0,0.00019178,2]
[388716486,1759333838871,-500.0,0.00019178,2]
[388716487,1759333838880,-500.0,0.00019178,2]
[388716488,1759333838890,-500.0,0.00019178,2]
[388716489,1759333838899,-500.0,0.00019178,2]
[388716490,1759333838909,-481.57325387,0.00019178,2]
[388716491,1759333838919,-500.0,0.00019178,2]
[388716492,1759333838928,-485.14440651,0.00019178,2]
[388716493,1759333838937,-500.0,0.00019178,2]
[388716494,1759333838946,-500.0,0.00019178,2]
[388716495,1759333838955,-481.62929897,0.00019178,2]
[388716496,1759333838964,-500.0,0.00019178,2]
[388716497,1759333838974,-500.0,0.00019178,2]
[388716498,1759333838984,-500.0,0.00019178,2]
[388716499,1759333838993,-500.0,0.00019178,2]
[388716500,1759333839002,-500.0,0.00019178,2]
[388716501,1759333839012,-500.0,0.00019178,2]
[388716502,1759333839022,-500.0,0.00019178,2]
[388716503,1759333839031,-500.0,0.00019178,2]
[388716504,1759333839040,-500.0,0.00019178,2]
[388716505,1759333839049,-500.0,0.00019178,2]
[388716506,1759333839059,-1182.83,0.00019178,2]
[388716507,1759333839068,-500.0,0.00019178,2]
[388716508,1759333839077,-483.24101608,0.00019178,2]
[388716509,1759333839086,-500.0,0.00019178,2]
[388716510,1759333839096,-500.0,0.00019178,2]
[388716511,1759333839105,-500.0,0.00019178,2]
[388716512,1759333839115,-500.0,0.00019178,2]
[388716513,1759333839124,-500.0,0.00019178,2]
[388716514,1759333839134,-533.0642308,0.00019178,2]
[388716515,1759333839143,-500.0,0.00019178,2]
[388716516,1759333839153,-469.56173654,0.00019178,2]
[388716517,1759333839167,-500.0,0.00019178,2]
[388716518,1759333839178,-500.0,0.00019178,2]
[388716519,1759333839187,-500.0,0.00019178,2]
[388716520,1759333839197,-481.41269566,0.00019178,2]
[388716521,1759333839208,-500.0,0.00019178,2]
[388716522,1759333839221,-500.0,0.00019178,2]
[388716523,1759333839230,-500.0,0.00019178,2]
[388716524,1759333839240,-500.0,0.00019178,2]
[388716525,1759333839249,-1283.89,0.00019178,2]
[388716526,1759333839258,-500.0,0.00019178,2]
[388716527,1759333839267,-480.0,0.00019178,2]
[388716528,1759333839276,-500.0,0.00019178,2]
[388716529,1759333839285,-500.0,0.00019178,2]
[388716530,1759333839294,-503.97373076,0.00019178,2]
[388716531,1759333839303,-500.0,0.00019178,2]
[388716532,1759333839312,-500.0,0.00019178,2]
[388716533,1759333839322,-480.0,0.00019178,2]
[388716534,1759333839331,-500.0,0.00019178,2]
[388716535,1759333839340,-500.0,0.00019178,2]
[388716536,1759333839349,-500.0,0.00019178,2]
[388716537,1759333839358,-500.0,0.00019178,2]
[388716538,1759333839367,-480.0,0.00019178,2]
[388716539,1759333839377,-459.28429922,0.00019178,2]
[388716540,1759333839386,-181.1775509,0.00019178,2]
[388716541,1759333839395,-480.0,0.00019178,2]
[388716542,1759333839405,-483.38234189,0.00019178,2]
[388716543,1759333839414,-500.0,0.00019178,2]
[388716544,1759333839422,-500.0,0.00019178,2]
[388716545,1759333839431,-500.0,0.00019178,2]
[388716546,1759333839440,-500.0,0.00019178,2]
[388716555,1759333839450,-500.0,0.00019178,2]
[388716556,1759333839566,-613.57088258,0.00019178,2]
[388716557,1759333839575,-500.0,0.00019178,2]
[388716558,1759333839585,-500.0,0.00019178,2]
[388716559,1759333839594,-500.0,0.00019178,2]
[388716560,1759333839603,-500.0,0.00019178,2]
[388716561,1759333839612,-500.0,0.00019178,2]
[388716562,1759333839621,-500.0,0.00019178,2]
[388716563,1759333839631,-500.0,0.00019178,2]
[388716565,1759333839639,-500.0,0.00019178,2]
[388716567,1759333839648,-201.17399,0.00019178,2]
[388716569,1759333839659,-500.0,0.00019178,2]
[388716571,1759333839668,-483.56531508,0.00019178,2]
[388716573,1759333839677,-201.17399,0.00019178,2]
[388716575,1759333839687,-500.0,0.00019178,2]
[388716577,1759333839695,-481.87921451,0.00019178,2]